bitfinex-derivatives/quotes_BTCF0:USTF0_20250405
["timestamp","ask_amount","ask_price","bid_price","bid_amount"]
[1743823758100,0.119387,83793.0,83792.0,0.119387]
[1743823758300,0.119387,83793.0,83792.0,0.480187]
[1743823759403,0.1790806,83793.0,83792.0,0.480187]
[1743823759600,0.0596936,83793.0,83792.0,0.480187]
[1743823759800,0.06065361,83793.0,83792.0,0.480187]
[1743823760000,0.06065361,83793.0,83792.0,0.480867]
[1743823762396,0.06057361,83793.0,83792.0,0.480867]
[1743823767812,0.00088001,83793.0,83792.0,0.480867]
[1743823769011,0.00088001,83793.0,83792.0,0.513467]
[1743823769903,0.12026701,83793.0,83792.0,0.513467]
[1743823771813,0.00088001,83793.0,83792.0,0.513467]
[1743823772203,0.03138001,83793.0,83792.0,0.513467]
[1743823772909,0.0305,83793.0,83792.0,0.513467]
[1743823773309,0.149887,83793.0,83792.0,0.513467]
[1743823773513,0.15076701,83793.0,83792.0,0.513467]
[1743823776915,0.15076701,83793.0,83792.0,0.546367]
[1743823780623,0.15076701,83793.0,83792.0,0.480867]
[1743823783025,0.15076701,83793.0,83792.0,0.841667]
[1743823783525,0.15076701,83793.0,83792.0,0.894187]
[1743823784026,0.15076701,83793.0,83792.0,0.956587]
[1743823785425,0.15076701,83793.0,83792.0,0.925487]
[1743823786218,0.15076701,83793.0,83792.0,0.956687]
[1743823786931,0.15076701,83793.0,83792.0,0.235087]
[1743823787227,0.15076701,83793.0,83792.0,0.956687]
[1743823787526,0.15076701,83793.0,83792.0,0.8373]
[1743823788225,0.15076701,83793.0,83792.0,0.7748]
[1743823788918,0.15076701,83793.0,83792.0,0.8078]
[1743823789227,0.15076701,83793.0,83792.0,0.9271884]
[1743823789528,0.15076701,83793.0,83792.0,0.8399]
[1743823789825,0.15076701,83793.0,83792.0,0.9592884]
[1743823793818,0.15076701,83793.0,83792.0,0.9067684]
[1743823794018,0.15076701,83793.0,83792.0,0.9590884]
[1743823795932,0.00088001,83793.0,83792.0,0.9590884]
[1743823796124,0.12026701,83793.0,83792.0,0.9590884]
[1743823796324,0.119387,83793.0,83792.0,0.9590884]
[1743823800741,0.119387,83793.0,83792.0,0.8067]
[1743823800951,0.15086701,83793.0,83792.0,0.7746]
[1743823801649,0.18266701,83793.0,83792.0,0.7746]
[1743823803045,0.18266701,83793.0,83792.0,0.72228]
[1743823803237,0.18266701,83793.0,83792.0,0.41372]
[1743823803645,0.18266701,83793.0,83792.0,0.36148]
[1743823803846,0.18266701,83793.0,83792.0,0.41372]
[1743823807360,0.15206701,83793.0,83792.0,0.41372]
[1743823807660,0.15206701,83793.0,83792.0,0.5331084]
[1743823807853,0.15206701,83793.0,83792.0,0.5974084]
[1743823809259,0.15206701,83793.0,83792.0,0.47802]
[1743823809646,0.15206701,83793.0,83792.0,0.41372]
[1743823809849,0.15206701,83793.0,83792.0,0.44662]
[1743823810049,0.15206701,83793.0,83792.0,0.47792]
[1743823810962,0.15206701,83793.0,83792.0,0.83872]
[1743823813861,0.15206701,83793.0,83792.0,0.77452]
[1743823814851,0.15206701,83793.0,83792.0,0.72228]
[1743823815055,0.15206701,83793.0,83792.0,0.77432]
[1743823817372,0.15206701,83793.0,83792.0,0.41352]
[1743823833876,0.15206701,83793.0,83792.0,0.36148]
[1743823834477,0.15206701,83793.0,83792.0,0.00068]
[1743823834677,0.15206701,83793.0,83792.0,0.36148]
[1743823837483,0.15206701,83793.0,83792.0,0.42588]
[1743823838285,0.15206701,83793.0,83792.0,0.39368]
[1743823839387,0.15206701,83793.0,83792.0,0.03288]
[1743823839585,0.15206701,83793.0,83792.0,0.39368]
[1743823840078,0.15206701,83793.0,83792.0,0.42448]
[1743823840884,0.15206701,83793.0,83792.0,0.06368]
[1743823841081,0.15206701,83793.0,83792.0,0.42448]
[1743823842584,0.15206701,83793.0,83792.0,0.36148]
[1743823842789,0.1193941,83788.0,83771.0,0.3608]
[1743823842975,0.1193941,83788.0,83766.0,0.0308]
[1743823842976,0.07185,83781.0,83766.0,0.0308]
[1743823843289,0.00116,83788.0,83766.0,0.0308]
[1743823843290,0.1194241,83767.0,83766.0,0.0308]
[1743823843482,0.12050411,83767.0,83766.0,0.0308]
[1743823845979,0.15130411,83767.0,83766.0,0.0308]
[1743823851993,0.12050411,83767.0,83766.0,0.0308]
[1743823860094,0.12050411,83767.0,83766.0,0.3916]
[1743823862104,0.12050411,83767.0,83766.0,0.4432]
[1743823865210,0.12050411,83767.0,83766.0,0.0824]
[1743823865410,0.12050411,83767.0,83766.0,0.4432]
[1743823869812,0.12050411,83767.0,83766.0,0.0824]
[1743823870013,0.12050411,83767.0,83766.0,0.4432]
[1743823871908,0.12050411,83767.0,83766.0,0.3916]
[1743823872115,0.12050411,83767.0,83766.0,0.44312]
[1743823873013,0.00108001,83767.0,83766.0,0.44312]
[1743823873317,0.1194241,83767.0,83766.0,0.44312]
[1743823874906,0.0597056,83776.0,83773.0,0.1194142]
[1743823875110,0.00112001,83776.0,83775.0,0.4802127]
[1743823875313,0.00112001,83776.0,83775.0,0.4808927]
[1743823875507,0.00112001,83776.0,83775.0,0.5440927]
[1743823876308,0.22997126,83777.0,83776.0,0.1194112]
[1743823876513,0.23073126,83777.0,83776.0,0.1200112]
[1743823876814,0.1419522,83777.0,83776.0,0.1857112]
[1743823877217,0.00076,83777.0,83776.0,0.1857112]
[1743823877414,0.1194069,83780.0,83779.0,0.119407]
[1743823877616,0.1194029,83782.0,83781.0,0.1194027]
[1743823877819,0.1202429,83782.0,83781.0,0.1200827]
[1743823878015,0.1194029,83782.0,83781.0,0.1200827]
[1743823883626,0.11957966,83784.0,83783.0,0.1194013]
[1743823883816,0.12041966,83784.0,83783.0,0.1200813]
[1743823884309,0.00101906,83784.0,83783.0,0.1200813]
[1743823884509,0.00017906,83784.0,83783.0,0.1200813]
[1743823884909,0.00093906,83784.0,83783.0,0.1200813]
[1743823887630,0.11576796,83785.0,83784.0,0.1193998]
[1743823887828,0.11636797,83785.0,83784.0,0.1200398]
[1743823889219,0.11636797,83785.0,83784.0,0.1510398]
[1743823891828,0.11636797,83785.0,83784.0,0.05192]
[1743823892027,0.14916797,83785.0,83784.0,0.05192]
[1743823892230,0.21106797,83785.0,83784.0,0.05192]
[1743823894031,0.21106797,83785.0,83784.0,0.41272]
[1743823898535,0.21106797,83785.0,83784.0,0.05192]
[1743823898834,0.21106797,83785.0,83784.0,0.41272]
[1743823899029,0.21106797,83785.0,83784.0,0.5321198]
[1743823899726,0.21106797,83785.0,83784.0,0.1713198]
[1743823899921,0.00060001,83785.0,83784.0,0.5321198]
[1743823900130,0.1506899,83791.0,83790.0,0.1193913]
[1743823900432,0.1513299,83791.0,83790.0,0.1200313]
[1743823900830,0.1513299,83791.0,83790.0,0.1514313]
[1743823901031,0.1513299,83791.0,83790.0,0.1843313]
[1743823901337,0.00064,83791.0,83790.0,0.1843313]
[1743823901529,0.1193891,83792.0,83791.0,0.1193899]
[1743823901838,0.1200291,83792.0,83791.0,0.4808699]
[1743823902025,0.00064,83792.0,83791.0,0.5446699]
[1743823902232,0.00017906,83793.0,83791.0,0.6640598]
[1743823902428,0.1193884,83792.0,83791.0,0.5446699]
[1743823902624,0.00064,83792.0,83791.0,0.5446699]
[1743823902849,0.1193884,83792.0,83791.0,0.5446684]
[1743823903030,0.11998841,83792.0,83791.0,0.5446684]
[1743823904437,0.00060001,83792.0,83791.0,0.5446684]
[1743823904633,0.00017906,83793.0,83792.0,0.1193884]
[1743823904827,0.00017906,83793.0,83792.0,0.1200284]
[1743823905031,0.00017906,83793.0,83792.0,0.1837284]
[1743823906042,0.03177906,83793.0,83792.0,0.1837284]
[1743823906542,0.15116606,83793.0,83792.0,0.1837284]
[1743823906841,0.15180606,83793.0,83792.0,0.1837284]
[1743823907438,0.12020606,83793.0,83792.0,0.1837284]
[1743823907838,0.0311,83799.0,83794.0,0.1193856]
[1743823908051,0.1193823,83798.0,83797.0,0.1193799]
[1743823908241,0.11998231,83798.0,83797.0,0.1714599]
[1743823908443,0.1193823,83798.0,83797.0,0.1714599]
[1743823909342,0.1790725,83798.0,83797.0,0.1714599]
[1743823909640,0.1799125,83798.0,83797.0,0.1714599]
[1743823912337,0.00084,83798.0,83797.0,0.1714599]
[1743823912536,0.1193783,83800.0,83799.0,0.1193778]
[1743823912743,0.1193783,83800.0,83799.0,0.4810178]
[1743823914943,0.0322,83801.0,83800.0,0.119377]
[1743823915247,0.0322,83801.0,83800.0,0.120217]
[1743823915847,0.0322,83801.0,83800.0,0.151917]
[1743823916048,0.1515756,83801.0,83800.0,0.151917]
[1743823916245,0.1524156,83801.0,83800.0,0.151917]
[1743823918387,0.1202156,83801.0,83800.0,0.151917]
[1743823918774,0.00084,83801.0,83800.0,0.151917]
[1743823918962,0.1193742,83803.0,83802.0,0.1193733]
[1743823919159,0.12033421,83803.0,83802.0,0.1202133]
[1743823920660,0.12033421,83803.0,83802.0,0.14662897]
[1743823923158,0.12033421,83803.0,83802.0,0.02725567]
[1743823924448,0.12033421,83803.0,83802.0,0.05985567]
[1743823924652,0.12033421,83803.0,83802.0,0.17922987]
[1743823926254,0.12033421,83803.0,83802.0,0.05985567]
[1743823929361,0.15233421,83803.0,83802.0,0.05985567]
[1743823932258,0.15233421,83803.0,83802.0,0.11105567]
[1743823933960,0.12033421,83803.0,83802.0,0.11105567]
[1743823935155,0.15233421,83803.0,83802.0,0.11105567]
[1743823936255,0.12033421,83803.0,83802.0,0.11105567]
[1743823937174,0.15233421,83803.0,83802.0,0.11105567]
[1743823938859,0.12033421,83803.0,83802.0,0.11105567]
[1743823939063,0.1193408,83826.0,83823.0,0.1193429]
[1743823939262,0.0596664,83831.0,83825.0,0.7216]
[1743823939567,0.1193388,83827.0,83825.0,0.7216]
[1743823939754,0.062,83830.0,83826.0,0.0635]
[1743823939959,0.1193366,83829.0,83826.0,0.06462]
[1743823940171,0.062,83830.0,83826.0,0.06462]
[1743823940356,0.10988402,83834.0,83827.0,0.0596693]
[1743823940665,0.10988402,83834.0,83832.0,0.3608]
[1743823940865,0.10988402,83834.0,83832.0,0.362]
[1743823941057,0.22921282,83834.0,83832.0,0.362]
[1743823941867,0.46904816,83833.0,83832.0,0.362]
[1743823942166,0.31711816,83833.0,83832.0,0.49046328]
[1743823942966,0.31711816,83833.0,83832.0,0.55526328]
[1743823944062,0.00017894,83836.0,83834.0,0.1193274]
[1743823944263,0.00017894,83836.0,83835.0,0.0959]
[1743823944463,0.00017894,83836.0,83835.0,0.09702]
[1743823945769,0.00017894,83836.0,83835.0,0.2163472]
[1743823953469,0.11950474,83836.0,83835.0,0.00112]
[1743823954375,0.18250474,83836.0,83835.0,0.00112]
[1743823955682,0.33250474,83836.0,83835.0,0.00112]
[1743823955980,0.11933,83833.0,83832.0,0.00913178]
[1743823956279,0.1193357,83829.0,83828.0,0.05108]
[1743823956480,0.1193357,83829.0,83828.0,0.05228]
[1743823957682,0.1193357,83829.0,83828.0,0.01029004]
[1743823957876,0.1193471,83821.0,83820.0,0.00017894]
[1743823958075,0.1193471,83821.0,83798.0,0.9696]
[1743823958076,0.1790357,83814.0,83813.0,0.05112]
[1743823959280,0.1193685,83806.0,83805.0,0.00017894]
[1743823959480,0.1193685,83806.0,83805.0,0.05133894]
[1743823960279,0.1837485,83806.0,83805.0,0.05217894]
[1743823962480,0.1837485,83806.0,83805.0,0.42199734]
[1743823964477,0.1200485,83806.0,83805.0,0.42199734]
[1743823965780,0.1200485,83806.0,83805.0,0.54136724]
[1743823966782,0.00050106,83806.0,83805.0,0.54136724]
[1743823966984,0.1193685,83806.0,83805.0,0.60736724]
[1743823967583,0.3193685,83806.0,83805.0,0.60736724]
[1743823968983,0.3193685,83806.0,83805.0,0.24656724]
[1743823969177,0.3193685,83806.0,83805.0,0.60736724]
[1743823970575,0.3202485,83806.0,83805.0,0.60736724]
[1743823974886,0.3202485,83806.0,83805.0,0.24656724]
[1743823975192,0.3202485,83806.0,83805.0,0.60736724]
[1743823978686,0.3202485,83806.0,83805.0,0.24656724]
[1743823979089,0.3202485,83806.0,83805.0,0.60736724]
[1743823980091,0.3202485,83806.0,83805.0,0.24656724]
[1743823980292,0.3202485,83806.0,83805.0,0.60736724]
[1743823980787,0.3202485,83806.0,83805.0,0.48799734]
[1743823980987,0.3202485,83806.0,83805.0,0.48779734]
[1743823981590,0.3503485,83806.0,83805.0,0.48779734]
[1743823986791,0.3503485,83806.0,83805.0,0.12699734]
[1743823987296,0.3503485,83806.0,83805.0,0.48779734]
[1743823987495,0.3503485,83806.0,83805.0,0.12699734]
[1743823987696,0.3503485,83806.0,83805.0,0.48779734]
[1743823988100,0.3503485,83806.0,83805.0,0.12699734]
[1743823988291,0.3503485,83806.0,83805.0,0.48779734]
[1743823991590,0.3503485,83806.0,83805.0,0.48775734]
[1743823992001,0.3503485,83806.0,83805.0,0.12695734]
[1743823992202,0.3503485,83806.0,83805.0,0.48775734]
[1743823992601,0.3503485,83806.0,83805.0,0.12695734]
[1743823992802,0.3503485,83806.0,83805.0,0.48775734]
[1743823994818,0.20088,83806.0,83805.0,0.60712724]
[1743823996118,0.18974897,83806.0,83805.0,0.60712724]
[1743823996316,0.119352,83818.0,83813.0,0.1193585]
[1743823996516,0.119351,83819.0,83813.0,0.4812385]
[1743823997318,0.119351,83819.0,83813.0,0.5453385]
[1743823998918,0.1193517,83818.0,83813.0,0.5453385]
[1743824000006,0.1193531,83817.0,83813.0,0.5453385]
[1743824001011,0.1193531,83817.0,83813.0,0.9061385]
[1743824001512,0.1193506,83819.0,83813.0,0.9061385]
[1743824001719,0.1193516,83818.0,83813.0,0.9061385]
[1743824002810,0.0311,83819.0,83813.0,0.9061385]
[1743824003412,0.1504503,83819.0,83813.0,0.9061385]
[1743824006617,0.119348,83821.0,83813.0,0.9061385]
[1743824006818,0.0324,83822.0,83813.0,0.9061385]
[1743824007025,0.0321,83824.0,83813.0,0.9061385]
[1743824007223,0.1193461,83822.0,83813.0,0.9061385]
[1743824008727,0.0596724,83823.0,83813.0,0.9061385]
[1743824008927,0.0896724,83823.0,83813.0,0.9061385]
[1743824009225,0.1193489,83820.0,83813.0,0.9061385]
[1743824009625,0.1193489,83820.0,83813.0,0.1845385]
[1743824009920,0.1193489,83820.0,83813.0,0.9061385]
[1743824010314,0.1193467,83822.0,83813.0,0.9061385]
[1743824011110,0.1515467,83822.0,83813.0,0.9061385]
[1743824011726,0.0322,83822.0,83813.0,0.9061385]
[1743824011919,0.1193431,83824.0,83813.0,0.9061385]
[1743824012511,0.0645,83829.0,83828.0,0.1193372]
[1743824012716,0.0645,83829.0,83828.0,0.5320172]
[1743824012717,0.1838357,83829.0,83828.0,0.5320172]
[1743824013024,0.1838357,83829.0,83828.0,0.41268]
[1743824013224,0.1838357,83829.0,83828.0,0.36192]
[1743824013427,0.1838357,83829.0,83828.0,0.41264]
[1743824013819,0.3838357,83829.0,83828.0,0.41264]
[1743824014127,0.3838357,83829.0,83828.0,0.44574]
[1743824017527,0.3838357,83829.0,83828.0,0.41264]
[1743824018028,0.3838357,83829.0,83828.0,0.05184]
[1743824018221,0.3838357,83829.0,83828.0,0.41264]
[1743824021521,0.3838357,83829.0,83828.0,0.44444]
[1743824022019,0.3838357,83829.0,83828.0,0.5637772]
[1743824025428,0.2,83829.0,83828.0,0.5637772]
[1743824025634,0.00017894,83837.0,83836.0,0.1193258]
[1743824025929,0.00017894,83837.0,83836.0,0.4812058]
[1743824026130,0.00017894,83837.0,83836.0,0.5431058]
[1743824026922,0.00017894,83837.0,83836.0,0.5745058]
[1743824027918,0.20017894,83837.0,83836.0,0.5745058]
[1743824029024,0.23307894,83837.0,83836.0,0.5745058]
[1743824031030,0.0596526,83851.0,83836.0,0.45518]
[1743824031329,0.0608,83850.0,83846.0,0.3608]
[1743824031535,0.1193093,83848.0,83847.0,0.2354888]
[1743824031836,0.1193093,83848.0,83847.0,0.2366088]
[1743824032335,0.1193093,83848.0,83847.0,0.26084216]
[1743824032941,0.1193093,83848.0,83847.0,0.14153336]
[1743824033238,0.1193093,83848.0,83847.0,0.1505703]
[1743824034226,0.3193093,83848.0,83847.0,0.1505703]
[1743824035135,0.2,83848.0,83847.0,0.2698804]
[1743824035637,0.1403168,83848.0,83847.0,0.2698804]
[1743824035938,0.08762865,83855.0,83854.0,0.1193002]
[1743824036133,0.08762865,83855.0,83854.0,0.4811802]
[1743824036842,0.0287845,83855.0,83854.0,0.5776802]
[1743824037248,0.0329,83863.0,83862.0,0.1192881]
[1743824037550,0.0329,83863.0,83862.0,0.5318481]
[1743824038244,0.1521874,83863.0,83862.0,0.5318481]
[1743824038746,0.3521874,83863.0,83862.0,0.5318481]
[1743824040043,0.3521874,83863.0,83862.0,0.41256]
[1743824041039,0.3521874,83863.0,83862.0,0.36188]
[1743824048054,0.3521874,83863.0,83862.0,0.00108]
[1743824049254,0.1192916,83860.0,83859.0,0.41148]
[1743824049550,0.1192916,83860.0,83859.0,0.4126]
[1743824050153,0.1510916,83860.0,83859.0,0.0518]
[1743824050348,0.1510916,83860.0,83859.0,0.4126]
[1743824050756,0.3510916,83860.0,83859.0,0.4126]
[1743824051454,0.3819916,83860.0,83859.0,0.4126]
[1743824052752,0.3819916,83860.0,83859.0,0.36192]
[1743824053554,0.3819916,83860.0,83859.0,0.00112]
[1743824053757,0.3819916,83860.0,83859.0,0.36192]
[1743824055549,0.3510916,83860.0,83859.0,0.36192]
[1743824055749,0.3510916,83860.0,83859.0,0.39332]
[1743824056666,0.3510916,83860.0,83859.0,0.03252]
[1743824056867,0.3510916,83860.0,83859.0,0.39332]
[1743824057069,0.3510916,83860.0,83859.0,0.06552]
[1743824057266,0.3510916,83860.0,83859.0,0.42632]
[1743824059359,0.3510916,83860.0,83859.0,0.06552]
[1743824059568,0.3510916,83860.0,83859.0,0.42632]
[1743824059761,0.3510916,83860.0,83859.0,0.06552]
[1743824059970,0.3510916,83860.0,83859.0,0.42632]
[1743824060162,0.3510916,83860.0,83859.0,0.47696]
[1743824061270,0.3510916,83860.0,83859.0,0.11616]
[1743824061471,0.3510916,83860.0,83859.0,0.47696]
[1743824063172,0.3510916,83860.0,83859.0,0.11616]
[1743824063468,0.3510916,83860.0,83859.0,0.47696]
[1743824065876,0.3510916,83860.0,83859.0,0.11616]
[1743824066067,0.3510916,83860.0,83859.0,0.47696]
[1743824066869,0.3510916,83860.0,83859.0,0.11616]
[1743824067069,0.3510916,83860.0,83859.0,0.47696]
[1743824067865,0.3510916,83860.0,83859.0,0.11616]
[1743824068066,0.3510916,83860.0,83859.0,0.47696]
[1743824068266,0.3510916,83860.0,83859.0,0.11616]
[1743824068469,0.3510916,83860.0,83859.0,0.47696]
[1743824068972,0.3192916,83860.0,83859.0,0.47696]
[1743824069275,0.3192916,83860.0,83859.0,0.11616]
[1743824069475,0.3192916,83860.0,83859.0,0.47696]
[1743824069876,0.3192916,83860.0,83859.0,0.11616]
[1743824070375,0.3192916,83860.0,83859.0,0.47696]
[1743824071474,0.3192916,83860.0,83859.0,0.11616]
[1743824071777,0.3192916,83860.0,83859.0,0.47696]
[1743824072071,0.3192916,83860.0,83859.0,0.11616]
[1743824072580,0.3192916,83860.0,83859.0,0.47696]
[1743824074478,0.3192916,83860.0,83859.0,0.11616]
[1743824074774,0.3192916,83860.0,83859.0,0.47696]
[1743824075476,0.3192916,83860.0,83859.0,0.11616]
[1743824075676,0.3192916,83860.0,83859.0,0.47696]
[1743824076282,0.3192916,83860.0,83859.0,0.11616]
[1743824076672,0.3192916,83860.0,83859.0,0.47696]
[1743824078086,0.3192916,83860.0,83859.0,0.11616]
[1743824078381,0.3192916,83860.0,83859.0,0.47696]
[1743824078682,0.3192916,83860.0,83859.0,0.11616]
[1743824078881,0.3192916,83860.0,83859.0,0.47696]
[1743824081884,0.3192916,83860.0,83859.0,0.11616]
[1743824082080,0.3192916,83860.0,83859.0,0.47696]
[1743824083482,0.3192916,83860.0,83859.0,0.11616]
[1743824083785,0.3192916,83860.0,83859.0,0.47696]
[1743824084689,0.3192916,83860.0,83859.0,0.11616]
[1743824084985,0.3192916,83860.0,83859.0,0.47696]
[1743824087277,0.3192916,83860.0,83859.0,0.11616]
[1743824087481,0.3192916,83860.0,83859.0,0.11504]
[1743824089186,0.3192916,83860.0,83859.0,0.11612]
[1743824092695,0.3192916,83860.0,83859.0,0.11549111]
[1743824092893,0.3192916,83860.0,83859.0,0.00108]
[1743824093098,0.4124,83860.0,83836.0,0.05064]
[1743824093398,0.4124,83860.0,83846.0,0.02227148]
[1743824093399,0.4801101,83847.0,83846.0,0.02227148]
[1743824093698,0.4801101,83847.0,83846.0,0.00017894]
[1743824094295,0.7411101,83847.0,83846.0,0.00017894]
[1743824094887,0.3803101,83847.0,83846.0,0.00017894]
[1743824095084,0.3810701,83847.0,83846.0,0.00093894]
[1743824095295,0.7418701,83847.0,83846.0,0.00093894]
[1743824095592,0.3810701,83847.0,83846.0,0.00093894]
[1743824095799,0.7418701,83847.0,83846.0,0.00093894]
[1743824097790,0.7418701,83847.0,83846.0,0.02058859]
[1743824097992,0.3810701,83847.0,83846.0,0.02058859]
[1743824098298,0.7418701,83847.0,83846.0,0.02058859]
[1743824098494,0.8294849,83847.0,83846.0,0.02058859]
[1743824099700,0.4686849,83847.0,83846.0,0.02058859]
[1743824099999,0.8294849,83847.0,83846.0,0.02058859]
[1743824100202,0.4686849,83847.0,83846.0,0.02058859]
[1743824100493,0.8294849,83847.0,83846.0,0.02058859]
[1743824102392,0.4686849,83847.0,83846.0,0.02058859]
[1743824102703,0.8294849,83847.0,83846.0,0.02058859]
[1743824103890,0.7418701,83847.0,83846.0,0.02058859]
[1743824105002,0.3810701,83847.0,83846.0,0.02058859]
[1743824105702,0.7418701,83847.0,83846.0,0.02058859]
[1743824107906,0.7418701,83847.0,83846.0,0.05218859]
[1743824108108,0.7418701,83847.0,83846.0,0.08398859]
[1743824108408,0.7118701,83847.0,83846.0,0.08398859]
[1743824108798,0.3510701,83847.0,83846.0,0.08398859]
[1743824109002,0.7118701,83847.0,83846.0,0.08398859]
[1743824109405,0.7994849,83847.0,83846.0,0.08398859]
[1743824111716,0.7118701,83847.0,83846.0,0.08398859]
[1743824112508,0.1193115,83846.0,83845.0,0.0323]
[1743824112709,0.1193115,83846.0,83840.0,0.5526509]
[1743824112710,0.1193187,83841.0,83840.0,0.5526509]
[1743824112923,0.1193557,83815.0,83814.0,0.3608]
[1743824113109,0.1193557,83815.0,83814.0,0.41204]
[1743824113305,0.1199957,83815.0,83814.0,0.56204]
[1743824113506,0.1193557,83815.0,83814.0,0.56204]
[1743824114103,0.3193557,83815.0,83814.0,0.56204]
[1743824114305,0.3199957,83815.0,83814.0,0.56204]
[1743824114603,0.3199957,83815.0,83814.0,0.58127804]
[1743824115814,0.3199957,83815.0,83814.0,0.43127804]
[1743824117011,0.3199957,83815.0,83807.0,0.059683]
[1743824117012,0.1193671,83807.0,83805.0,0.0090184]
[1743824117213,0.4801671,83807.0,83806.0,0.00105894]
[1743824117512,0.4810071,83807.0,83806.0,0.00017894]
[1743824117910,0.1193685,83806.0,83805.0,4e-08]
[1743824118114,0.1193742,83802.0,83801.0,0.0333]
[1743824118314,0.1202142,83802.0,83801.0,0.0333]
[1743824118514,0.1193842,83795.0,83794.0,0.3608]
[1743824118711,0.1202242,83795.0,83794.0,0.3614]
[1743824119408,0.5142242,83795.0,83794.0,0.00966331]
[1743824119715,0.5470242,83795.0,83794.0,0.00906331]
[1743824119915,0.1193856,83794.0,83793.0,0.05182976]
[1743824120113,0.1202256,83794.0,83793.0,0.05182976]
[1743824120308,0.1862256,83794.0,83793.0,0.05182976]
[1743824121717,0.5470256,83794.0,83793.0,0.05182976]
[1743824121918,0.3862256,83794.0,83793.0,0.05182976]
[1743824122217,0.3862256,83794.0,83793.0,0.05266976]
[1743824122218,0.7470256,83794.0,83793.0,0.05266976]
[1743824122406,0.6810256,83794.0,83793.0,0.05182976]
[1743824122608,0.3202256,83794.0,83793.0,0.05242976]
[1743824123017,0.3202256,83794.0,83793.0,0.06150919]
[1743824124518,0.3202256,83794.0,83793.0,0.42230919]
[1743824128617,0.3202256,83794.0,83793.0,0.54169619]
[1743824129817,0.3202256,83794.0,83793.0,0.42230919]
[1743824130217,0.3202256,83794.0,83793.0,0.45460919]
[1743824130722,0.3202256,83794.0,83793.0,0.57399619]
[1743824134526,0.20084,83794.0,83793.0,0.57399619]
[1743824134717,0.11102732,83794.0,83793.0,0.57399619]
[1743824134917,0.05132732,83794.0,83793.0,0.72399619]
[1743824135813,0.03321538,83794.0,83793.0,0.72399619]
[1743824136019,0.00017894,83803.0,83802.0,0.1193742]
[1743824136228,0.1193567,83818.0,83817.0,0.1193514]
[1743824136421,0.1193567,83818.0,83817.0,0.41224]
[1743824136422,0.1797133,83818.0,83817.0,0.41224]
[1743824138025,0.2104133,83818.0,83817.0,0.41224]
[1743824138623,0.4104133,83818.0,83817.0,0.41224]
[1743824141733,0.39874484,83818.0,83817.0,0.41224]
[1743824144635,0.39874484,83818.0,83817.0,0.5315928]
[1743824144932,0.39874484,83818.0,83817.0,0.5925928]
[1743824146435,0.2910566,83818.0,83817.0,0.5925928]
[1743824147136,0.2910566,83818.0,83817.0,0.5622928]
[1743824147531,0.2910566,83818.0,83817.0,0.5315928]
[1743824147731,0.2910566,83818.0,83817.0,0.41224]
[1743824149536,0.2910566,83818.0,83817.0,0.41216]
[1743824149934,0.2910566,83818.0,83817.0,0.05136]
[1743824150140,0.2910566,83818.0,83817.0,0.41216]
[1743824156841,0.2910566,83818.0,83817.0,0.41212]
[1743824157234,0.3216566,83818.0,83817.0,0.41212]
[1743824159544,0.3216566,83818.0,83817.0,0.05132]
[1743824159846,0.3216566,83818.0,83817.0,0.05064]
[1743824160037,0.3216566,83818.0,83817.0,0.05132]
[1743824162150,0.2910566,83818.0,83817.0,0.1706728]
[1743824162349,0.23138,83818.0,83817.0,0.2335728]
[1743824162547,0.2307,83818.0,83817.0,0.2335728]
[1743824162953,0.23130001,83818.0,83817.0,0.2335728]
[1743824163245,0.23130001,83818.0,83817.0,0.5943728]
[1743824163848,0.20060001,83818.0,83817.0,0.5943728]
[1743824164540,0.00060001,83818.0,83817.0,0.5943728]
[1743824164741,0.119348,83821.0,83820.0,0.1193486]
[1743824165041,0.119348,83821.0,83820.0,0.1199486]
[1743824165548,0.319348,83821.0,83820.0,0.4807486]
[1743824165749,0.31994801,83821.0,83820.0,0.1199486]
[1743824166053,0.31994801,83821.0,83820.0,0.4807486]
[1743824166441,0.31994801,83821.0,83820.0,0.1199486]
[1743824166951,0.31994801,83821.0,83820.0,0.4807486]
[1743824171242,0.20060001,83821.0,83820.0,0.4807486]
[1743824171445,0.18440506,83821.0,83820.0,0.4807486]
[1743824172254,0.03,83824.0,83823.0,0.1193443]
[1743824172452,0.03,83824.0,83823.0,0.1199443]
[1743824172948,0.03064,83824.0,83823.0,0.1199443]
[1743824177259,0.03064,83824.0,83823.0,0.8415443]
[1743824177462,0.03,83824.0,83823.0,0.8415443]
[1743824180862,0.1493429,83824.0,83823.0,0.7222]
[1743824181160,0.21344291,83824.0,83823.0,0.7222]
[1743824181354,0.2135229,83824.0,83823.0,0.7222]
[1743824183661,0.2135229,83824.0,83823.0,0.7728]
[1743824183956,0.2135229,83824.0,83823.0,0.0512]
[1743824184162,0.2135229,83824.0,83823.0,0.3614]
[1743824184364,0.2135229,83824.0,83823.0,0.412]
[1743824184867,0.2135229,83824.0,83823.0,0.0512]
[1743824185162,0.2135229,83824.0,83823.0,0.412]
[1743824186259,0.1819229,83824.0,83823.0,0.412]
[1743824187154,0.1819229,83824.0,83823.0,0.4739]
[1743824187355,0.1819229,83824.0,83823.0,0.2324443]
[1743824187558,0.1819229,83824.0,83823.0,0.5932443]
[1743824188465,0.1819229,83824.0,83823.0,0.2324443]
[1743824188667,0.1819229,83824.0,83823.0,0.5932443]
[1743824188968,0.1819229,83824.0,83823.0,0.2324443]
[1743824189169,0.1819229,83824.0,83823.0,0.5932443]
[1743824189465,0.1819229,83824.0,83823.0,0.2324443]
[1743824189661,0.1819229,83824.0,83823.0,0.5932443]
[1743824190471,0.1819229,83824.0,83823.0,0.2324443]
[1743824190665,0.1819229,83824.0,83823.0,0.5932443]
[1743824191462,0.1819229,83824.0,83823.0,0.2324443]
[1743824191673,0.1819229,83824.0,83823.0,0.5932443]
[1743824191876,0.03068,83824.0,83823.0,0.5932443]
[1743824192062,0.03,83824.0,83823.0,0.5932443]
[1743824192373,0.00017894,83826.0,83825.0,0.1193414]
[1743824192556,0.00017894,83826.0,83825.0,0.1199814]
[1743824192957,0.20017894,83826.0,83825.0,0.1199814]
[1743824193162,0.20077895,83826.0,83825.0,0.1199814]
[1743824194573,0.18259895,83826.0,83825.0,0.1199814]
[1743824195878,0.00060001,83826.0,83825.0,0.1199814]
[1743824196071,0.1193341,83831.0,83830.0,0.1193343]
[1743824196278,0.1200141,83831.0,83830.0,0.4808143]
[1743824196478,0.3827141,83831.0,83830.0,0.4808143]
[1743824200579,0.3503141,83831.0,83830.0,0.4808143]
[1743824200775,0.23098,83831.0,83830.0,0.4808143]
[1743824202187,0.03098,83831.0,83830.0,0.4808143]
[1743824204084,0.07241185,83845.0,83841.0,0.1193177]